bitfinex/quotes_ETHUSD_20240729
["timestamp","ask_amount","ask_price","bid_price","bid_amount"]
[1722296341393,2.46997585,3332.1,3332.0,0.2]
[1722296341904,1.63248111,3332.1,3332.0,0.2]
[1722296342620,2.57509621,3332.1,3332.0,0.2]
[1722296343558,2.57515825,3332.1,3332.0,3.2012]
[1722296343764,2.5751582,3332.1,3332.0,3.2012]
[1722296343963,2.5751786,3332.1,3332.0,0.2]
[1722296344212,1.6325635,3332.1,3332.0,0.2]
[1722296344564,2.88899697,3332.1,3332.0,0.2]
[1722296345270,7.97154737,3332.1,3332.0,0.2]
[1722296345669,9.54195461,3332.1,3332.0,0.2]
[1722296346167,12.54306461,3332.1,3332.0,0.2]
[1722296346412,13.25591544,3332.1,3332.0,0.2]
[1722296346605,15.69040413,3332.1,3332.0,0.2]
[1722296346912,13.80591544,3332.1,3332.0,0.2]
[1722296347207,15.68915127,3332.1,3332.0,0.2]
[1722296347508,13.80591544,3332.1,3332.0,0.2]
[1722296347677,15.68915127,3332.1,3332.0,0.2]
[1722296348367,16.80702544,3332.1,3332.0,0.2]
[1722296348785,18.68862143,3332.1,3332.0,0.2]
[1722296349081,16.80702544,3332.1,3332.0,0.2]
[1722296349484,18.68782432,3332.1,3332.0,0.2]
[1722296350079,24.87266801,3332.1,3332.0,0.2]
[1722296350285,28.18733077,3332.1,3332.0,0.2]
[1722296350605,25.99213544,3332.1,3332.0,0.2]
[1722296350973,26.13532423,3332.1,3332.0,0.2]
[1722296351171,26.13532423,3332.1,3332.0,0.17345267]
[1722296351486,26.13532423,3332.1,3332.0,8.2e-07]
[1722296351487,26.13537615,3332.1,3332.0,8.2e-07]
[1722296351703,26.18767272,3332.1,3332.0,8.2e-07]
[1722296352077,26.61752019,3332.1,3332.0,8.2e-07]
[1722296352272,26.3309007,3332.1,3332.0,8.2e-07]
[1722296352474,23.27749413,3332.1,3332.0,8.2e-07]
[1722296352681,25.32386896,3332.1,3332.0,8.2e-07]
[1722296352888,23.13425858,3332.1,3332.0,8.2e-07]
[1722296354612,18.8443986,3332.1,3332.0,8.2e-07]
[1722296354841,14.67741785,3332.1,3332.0,8.2e-07]
[1722296355207,16.24017065,3332.1,3332.0,8.2e-07]
[1722296355433,16.2398475,3332.1,3332.0,8.2e-07]
[1722296355603,5.82310785,3332.1,3332.0,8.2e-07]
[1722296355803,10.07422401,3332.1,3332.0,8.2e-07]
[1722296356136,10.07420074,3332.1,3332.0,8.2e-07]
[1722296356513,7.07309074,3332.1,3332.0,8.2e-07]
[1722296356711,17.28172785,3332.1,3332.0,8.2e-07]
[1722296356920,19.57404753,3332.1,3332.0,8.2e-07]
[1722296357140,19.57405433,3332.1,3332.0,8.2e-07]
[1722296357329,19.15592993,3332.1,3332.0,8.2e-07]
[1722296357502,21.44826753,3332.1,3332.0,8.2e-07]
[1722296357703,12.99081993,3332.1,3332.0,8.2e-07]
[1722296357961,14.66661785,3332.1,3332.0,8.2e-07]
[1722296358116,14.73369912,3332.1,3332.0,8.2e-07]
[1722296358429,16.15156644,3332.1,3332.0,8.2e-07]
[1722296358643,13.85916644,3332.1,3332.0,8.2e-07]
[1722296358961,8.63734247,3332.1,3332.0,8.2e-07]
[1722296359307,7.10972855,3332.1,3332.0,8.2e-07]
[1722296359557,3.17203085,3332.1,3332.0,8.2e-07]
[1722296359788,5.63650805,3332.1,3332.0,8.2e-07]
[1722296359938,8.63761805,3332.1,3332.0,8.2e-07]
[1722296360146,11.69077524,3332.1,3332.0,8.2e-07]
[1722296360478,12.93950606,3332.1,3332.0,8.2e-07]
[1722296360677,12.93971585,3332.1,3332.0,8.2e-07]
[1722296361053,11.69077524,3332.1,3332.0,8.2e-07]
[1722296361360,12.93970924,3332.1,3332.0,8.2e-07]
[1722296361555,11.69077524,3332.1,3332.0,8.2e-07]
[1722296361947,17.01828524,3332.1,3332.0,8.2e-07]
[1722296362150,19.12945274,3332.1,3332.0,8.2e-07]
[1722296362450,17.56828524,3332.1,3332.0,8.2e-07]
[1722296362661,16.44057624,3332.1,3332.0,8.2e-07]
[1722296362953,16.12804453,3332.1,3332.0,8.2e-07]
[1722296363147,16.12801792,3332.1,3332.0,8.2e-07]
[1722296363457,12.24077524,3332.1,3332.0,8.2e-07]
[1722296364490,13.48958104,3332.1,3332.0,8.2e-07]
[1722296364859,13.80174366,3332.1,3332.0,8.2e-07]
[1722296365063,12.24077524,3332.1,3332.0,8.2e-07]
[1722296365366,13.80205228,3332.1,3332.0,8.2e-07]
[1722296367396,13.8027152,3332.1,3332.0,8.2e-07]
[1722296367952,12.24096082,3332.1,3332.0,8.2e-07]
[1722296368158,13.80277068,3332.1,3332.0,8.2e-07]
[1722296368786,12.24096082,3332.1,3332.0,8.2e-07]
[1722296369390,13.80305083,3332.1,3332.0,8.2e-07]
[1722296369598,12.24096082,3332.1,3332.0,8.2e-07]
[1722296369810,13.49077294,3332.1,3332.0,8.2e-07]
[1722296370322,12.24096082,3332.1,3332.0,8.2e-07]
[1722296370487,13.49091528,3332.1,3332.0,8.2e-07]
[1722296370690,13.49096649,3332.1,3332.0,8.2e-07]
[1722296370910,12.24096082,3332.1,3332.0,8.2e-07]
[1722296371811,13.49117217,3332.1,3332.0,8.2e-07]
[1722296372311,10.49006217,3332.1,3332.0,8.2e-07]
[1722296372512,8.68985082,3332.1,3332.0,8.2e-07]
[1722296372833,9.94030464,3332.1,3332.0,8.2e-07]
[1722296373974,8.68985082,3332.1,3332.0,8.2e-07]
[1722296374221,9.94048567,3332.1,3332.0,8.2e-07]
[1722296374522,8.68985082,3332.1,3332.0,8.2e-07]
[1722296374719,5.68874082,3332.1,3332.0,8.2e-07]
[1722296374929,1.70010593,3332.1,3332.0,8.2e-07]
[1722296375139,0.17203085,3332.1,3332.0,5.40800082]
[1722296376433,0.06708127,3332.1,3332.0,5.40800082]
[1722296376784,0.17130263,3332.1,3332.0,5.40800082]
[1722296377036,0.17130263,3332.1,3332.0,2.40680082]
[1722296377178,3.17241263,3332.1,3332.0,2.40680082]
[1722296377393,6.31889389,3332.1,3332.0,8.2e-07]
[1722296377602,5.63896525,3332.1,3332.0,8.2e-07]
[1722296378397,4.7001996,3332.1,3332.0,8.2e-07]
[1722296379236,2.63833756,3332.1,3332.0,8.2e-07]
[1722296379536,1.6990896,3332.1,3332.0,8.2e-07]
[1722296380694,2.95077713,3332.1,3332.0,8.2e-07]
[1722296381430,10.01884671,3332.1,3332.0,8.2e-07]
[1722296381618,9.26709723,3332.1,3332.0,8.2e-07]
[1722296381826,9.99317869,3332.1,3332.0,8.2e-07]
[1722296382286,11.87212385,3332.1,3332.0,8.2e-07]
[1722296382724,9.99317869,3332.1,3332.0,8.2e-07]
[1722296382905,11.87212385,3332.1,3332.0,8.2e-07]
[1722296383256,11.87343747,3332.1,3332.0,8.2e-07]
[1722296383754,9.99317869,3332.1,3332.0,8.2e-07]
[1722296383910,8.42063244,3332.1,3332.0,8.2e-07]
[1722296384899,1.6990896,3332.1,3332.0,8.2e-07]
[1722296385231,3.99087074,3332.1,3332.0,8.2e-07]
[1722296385431,1.6990896,3332.1,3332.0,8.2e-07]
[1722296385602,3.26702972,3332.1,3332.0,8.2e-07]
[1722296386039,3.26707951,3332.1,3332.0,8.2e-07]
[1722296386201,1.6990896,3332.1,3332.0,8.2e-07]
[1722296386394,3.26709797,3332.1,3332.0,8.2e-07]
[1722296387108,3.26709642,3332.1,3332.0,8.2e-07]
[1722296387999,1.69908805,3332.1,3332.0,8.2e-07]
[1722296388404,1.69908805,3332.1,3332.0,3.2268009]
[1722296388618,2.6400562,3332.1,3332.0,3.2268009]
[1722296388823,1.69908805,3332.1,3332.0,3.2268009]
[1722296391432,2.3264765,3332.1,3332.0,6.2280009]
[1722296392102,1.69908805,3332.1,3332.0,6.2280009]
[1722296392545,2.32641408,3332.1,3332.0,6.2280009]
[1722296392709,1.69908805,3332.1,3332.0,6.2280009]
[1722296392906,2.32642631,3332.1,3332.0,6.2280009]
[1722296395651,2.32642631,3332.1,3332.0,3.2268009]
[1722296396362,2.32642631,3332.1,3332.0,8.2e-07]
[1722296396570,2.64009355,3332.1,3332.0,8.2e-07]
[1722296396737,1.69908805,3332.1,3332.0,8.2e-07]
[1722296397179,2.63987419,3332.1,3332.0,8.2e-07]
[1722296397323,1.69908805,3332.1,3332.0,8.2e-07]
[1722296397526,2.95376206,3332.1,3332.0,8.2e-07]
[1722296397963,0.80015424,3332.1,3332.0,8.2e-07]
[1722296398158,2.05482825,3332.1,3332.0,8.2e-07]
[1722296398360,0.09769731,3332.1,3332.0,8.2e-07]
[1722296400871,0.09769731,3332.1,3332.0,3.00120082]
[1722296401049,0.09769731,3332.1,3332.0,3.60745149]
[1722296402039,0.72513773,3332.1,3332.0,8.90455149]
[1722296402240,0.09769731,3332.1,3332.0,8.90455149]
[1722296402654,0.72513773,3332.1,3332.0,8.90455149]
[1722296402969,0.09769731,3332.1,3332.0,8.90455149]
[1722296403773,0.72513773,3332.1,3332.0,8.90455149]
[1722296403973,0.09769731,3332.1,3332.0,8.90455149]
[1722296406386,0.62744042,3332.3,3332.2,3.00102]
[1722296406587,0.62744042,3332.3,3332.2,3.89144615]
[1722296406902,0.94117167,3332.4,3332.2,3.89144615]
[1722296407265,0.94117167,3332.4,3332.0,2.29590082]
[1722296407266,0.94117167,3332.3,3332.0,8.2e-07]
[1722296407467,0.62730586,3332.1,3332.0,8.2e-07]
[1722296409515,0.94117167,3332.2,3332.0,8.2e-07]
[1722296410001,0.62738975,3332.1,3332.0,8.2e-07]
[1722296410161,0.94117167,3332.2,3332.0,8.2e-07]
[1722296410910,0.94081992,3332.2,3332.0,8.2e-07]
[1722296411288,0.62722209,3332.1,3332.0,3.3013189]
[1722296413789,0.62722209,3332.1,3332.0,6.36253897]
[1722296414790,0.62722209,3332.1,3332.0,11.82763897]
[1722296415024,1.25442656,3332.4,3332.3,8.46576]
[1722296415025,0.62722209,3332.4,3332.3,8.46576]
[1722296415206,0.62722209,3332.5,3332.4,6.00168]
[1722296415424,0.62722209,3332.6,3332.5,6.0015]
[1722296415752,0.62722209,3332.6,3332.4,1.41136]
[1722296415753,0.62722209,3332.7,3332.6,6.00132]
[1722296416043,0.94081992,3332.9,3332.6,6.00132]
[1722296416044,0.62722209,3332.8,3332.7,3.00057]
[1722296416189,0.94081992,3332.9,3332.8,3.00048]
[1722296416390,0.94081992,3333.0,3332.8,3.00048]
[1722296416624,1.25442656,3333.1,3333.0,3.0003]
[1722296416800,1.56859437,3333.2,3333.1,3.00021]
[1722296417024,1.25515726,3333.2,3333.1,3.00021]
[1722296417215,0.94143197,3333.3,3333.2,3.00012]
[1722296417423,1.25515726,3333.4,3333.3,3.00003]
[1722296417592,0.94116059,3333.4,3333.3,2.99996]
[1722296418205,0.62720853,3333.4,3333.3,3.00003]
[1722296418402,1.52697539,3333.4,3333.3,3.00003]
[1722296418647,2.15422986,3333.4,3333.3,3.00003]
[1722296419061,2.15422986,3333.4,3333.3,6.00006]
[1722296419363,0.94116059,3333.7,3333.5,5.49235]
[1722296419544,2.1538645,3333.6,3333.5,5.49235]
[1722296420655,2.15367523,3333.6,3333.5,5.49235]
[1722296421237,0.62673373,3333.7,3333.5,5.49235]
[1722296421563,2.15364117,3333.6,3333.2,3.00009]
[1722296421848,1.25515726,3333.9,3332.9,2.4925]
[1722296421849,0.62673373,3333.5,3333.0,3.00029]
[1722296422587,3.94097059,3333.6,3332.8,3.00045]
[1722296422588,2.15380165,3333.4,3332.8,3.00045]
[1722296422755,2.15380165,3333.3,3332.8,3.00045]
[1722296422912,0.62673373,3333.2,3332.8,3.00045]
[1722296423112,0.62673373,3333.2,3333.0,3.00027]
[1722296423416,0.62673373,3333.4,3333.0,3.00027]
[1722296425409,0.62673373,3333.3,3333.0,3.00027]
[1722296426215,0.62673373,3333.4,3333.0,3.00027]
[1722296428189,0.62673373,3333.5,3333.1,2.3066]
[1722296428500,0.62673373,3333.5,3333.2,3.00006]
[1722296428656,0.62673373,3333.5,3333.3,3.0]
[1722296428850,0.62673373,3333.6,3333.3,3.0]
[1722296429255,0.62673373,3333.7,3333.4,2.99993]
[1722296429550,0.62673373,3333.7,3333.4,3.05986525]
[1722296429770,0.62673373,3333.8,3333.5,2.99976]
[1722296430182,0.62673373,3333.8,3333.4,2.99987]
[1722296430800,0.62673373,3333.8,3333.5,2.99984]
[1722296431292,0.62673373,3333.8,3333.7,2.99967]
[1722296431654,0.62673373,3333.9,3333.7,2.99967]
[1722296431898,0.12983084,3333.8,3333.7,2.99967]
[1722296433718,0.12983084,3333.8,3333.5,2.3962]
[1722296433719,0.12983084,3333.8,3333.6,2.99974]
[1722296435761,0.62628755,3334.0,3333.6,2.99974]
[1722296435963,0.1256306,3333.9,3333.6,2.99974]
[1722296437647,0.1256306,3333.9,3333.4,2.99992]
[1722296437898,0.1256306,3333.9,3333.1,2.4085]
[1722296437899,0.1256306,3333.9,3333.3,3.00002]
[1722296438103,0.1256306,3333.9,3333.1,2.4085]
[1722296438104,2.99963,3333.8,3333.1,5.40865]
[1722296438301,0.62628755,3333.7,3333.0,3.00026]
[1722296438519,0.62628755,3333.7,3332.7,3.00055]
[1722296438520,2.15340338,3333.6,3332.7,3.00055]
[1722296438801,3.00003,3333.3,3332.5,5.40919]
[1722296439007,3.00027,3333.1,3332.5,5.40919]
[1722296439192,3.00027,3333.1,3332.5,3.00069]
[1722296439503,0.12137126,3333.0,3332.5,3.00069]
[1722296440461,0.12137126,3333.0,3332.7,3.00056]
[1722296440662,0.12137126,3333.0,3332.7,3.600685]
[1722296441304,0.12137126,3333.0,3332.9,3.00039]
[1722296441628,3.00053,3332.8,3332.0,7.34000082]
[1722296441913,3.62657835,3332.6,3332.0,8.2e-07]
[1722296442126,3.62677835,3332.4,3332.0,8.2e-07]
[1722296442262,3.00107,3332.2,3332.0,8.2e-07]
[1722296442459,3.62683404,3332.2,3332.0,8.2e-07]
[1722296442810,3.7479564,3332.1,3332.0,8.2e-07]
[1722296443331,11.02573793,3332.1,3332.0,8.2e-07]
[1722296443475,12.56634655,3332.1,3332.0,8.2e-07]
[1722296443677,11.31481846,3332.1,3332.0,8.2e-07]
[1722296443995,12.5658197,3332.1,3332.0,8.2e-07]
[1722296444366,14.31592846,3332.1,3332.0,8.2e-07]
[1722296444566,14.86592846,3332.1,3332.0,8.2e-07]
[1722296444777,16.43033858,3332.1,3332.0,8.2e-07]
[1722296445198,14.86592846,3332.1,3332.0,8.2e-07]
[1722296445685,17.86592846,3332.1,3332.0,8.2e-07]
[1722296446017,20.08272047,3332.1,3332.0,8.2e-07]
[1722296446322,17.86592846,3332.1,3332.0,8.2e-07]
[1722296446486,20.08257636,3332.1,3332.0,8.2e-07]
[1722296446670,21.95816629,3332.1,3332.0,8.2e-07]
[1722296447306,23.08346597,3332.1,3332.0,8.2e-07]
[1722296447462,21.95797681,3332.1,3332.0,8.2e-07]
[1722296448169,19.7415493,3332.1,3332.0,8.2e-07]
[1722296448369,17.86592846,3332.1,3332.0,8.2e-07]
[1722296450305,19.42626707,3332.1,3332.0,8.2e-07]
[1722296450504,19.4262368,3332.1,3332.0,8.2e-07]
[1722296451740,16.4251268,3332.1,3332.0,8.2e-07]
[1722296451888,14.86481846,3332.1,3332.0,8.2e-07]
[1722296452413,15.80044567,3332.1,3332.0,8.2e-07]
[1722296452600,14.86481846,3332.1,3332.0,8.2e-07]
[1722296452796,15.80043395,3332.1,3332.0,8.2e-07]
[1722296453330,15.80044616,3332.1,3332.0,8.2e-07]
[1722296453474,14.86481846,3332.1,3332.0,8.2e-07]
[1722296453676,11.20109186,3332.1,3332.0,8.2e-07]
[1722296453921,9.7469423,3332.1,3332.0,8.2e-07]
[1722296454171,11.58695449,3332.1,3332.0,8.2e-07]
[1722296454415,10.65132679,3332.1,3332.0,8.2e-07]
[1722296454998,17.83934039,3332.1,3332.0,8.2e-07]
[1722296455206,19.14820578,3332.1,3332.0,8.2e-07]
[1722296455428,20.39524937,3332.1,3332.0,8.2e-07]
[1722296455572,19.14820578,3332.1,3332.0,8.2e-07]
[1722296456075,20.39524937,3332.1,3332.0,8.2e-07]
[1722296456311,19.14820578,3332.1,3332.0,8.2e-07]
[1722296456491,20.08321456,3332.1,3332.0,8.2e-07]
[1722296459284,17.62018135,3332.1,3332.0,8.2e-07]
[1722296459485,19.14831267,3332.1,3332.0,8.2e-07]
[1722296459701,19.14831258,3332.1,3332.0,8.2e-07]
[1722296460255,17.62018135,3332.1,3332.0,8.2e-07]
[1722296460560,19.14834217,3332.1,3332.0,8.2e-07]
[1722296460711,18.55519013,3332.1,3332.0,8.2e-07]
[1722296461075,17.62018135,3332.1,3332.0,8.2e-07]
[1722296461226,19.14834711,3332.1,3332.0,8.2e-07]
[1722296462467,17.62018135,3332.1,3332.0,8.2e-07]
[1722296462618,19.77055922,3332.1,3332.0,8.2e-07]
[1722296463027,18.24238285,3332.1,3332.0,8.2e-07]
[1722296463310,19.77053265,3332.1,3332.0,8.2e-07]
[1722296463529,15.24121699,3332.1,3332.0,8.2e-07]
[1722296463855,14.61907135,3332.1,3332.0,8.2e-07]
[1722296464360,17.62018135,3332.1,3332.0,8.2e-07]
[1722296464510,14.61907135,3332.1,3332.0,8.2e-07]
[1722296465177,12.22967135,3332.1,3332.0,8.2e-07]
[1722296466216,15.23078135,3332.1,3332.0,8.2e-07]
[1722296466484,17.69290434,3332.1,3332.0,8.2e-07]
[1722296466778,16.75893944,3332.1,3332.0,8.2e-07]
[1722296467381,17.69216664,3332.1,3332.0,8.2e-07]
[1722296467873,17.69216664,3332.1,3330.5,2.4017]
[1722296467874,3.0022,3330.9,3330.5,2.4017]
[1722296468485,0.11590728,3330.8,3330.5,2.4017]
[1722296470582,3.00237,3330.7,3330.5,2.4017]
[1722296470934,0.11587765,3330.6,3330.5,2.4017]
[1722296472293,3.11837765,3330.6,3330.1,2.4017]
[1722296472466,3.11837765,3330.6,3330.1,2.942166]
[1722296472684,3.00255,3330.5,3330.1,2.4017]
[1722296472989,3.0027,3330.4,3330.1,2.4017]
[1722296473145,3.11840275,3330.4,3330.1,2.4017]
[1722296474885,0.11570275,3330.4,3330.1,2.4017]
[1722296475355,3.00265,3330.4,3330.1,2.4017]
[1722296475554,0.11566124,3330.3,3330.1,2.4017]
[1722296479610,0.11566124,3330.3,3329.6,2.3046]
[1722296479611,3.00282,3330.2,3329.6,2.3046]
[1722296480251,3.11834249,3330.1,3329.6,2.3046]
[1722296480500,3.11834249,3330.1,3329.1,5.30837]
[1722296480501,0.61211625,3330.0,3329.1,5.30837]
[1722296480685,3.00334,3329.7,3329.1,2.3046]
[1722296481055,0.115341,3329.6,3329.1,2.3046]
[1722296482155,3.118711,3329.6,3329.1,2.3046]
[1722296482464,0.115341,3329.6,3329.1,2.3046]
[1722296482664,3.00369,3329.3,3329.1,2.3046]
[1722296483069,0.11502062,3329.2,3329.1,2.3046]
[1722296483467,3.00369,3329.3,3329.1,2.3046]
[1722296483698,0.11502062,3329.2,3329.1,2.3046]
[1722296483911,0.11502062,3329.2,3328.7,3.00416]
[1722296484060,3.00369,3329.3,3328.7,3.843205]
[1722296484598,0.11502062,3329.2,3328.8,3.00408]
[1722296484771,3.00332,3329.7,3328.8,3.00408]
[1722296484972,6.00302,3330.0,3329.4,3.00354]
[1722296485300,6.00302,3330.0,3329.5,2.3821]
[1722296485301,3.0,3329.9,3329.5,2.3821]
[1722296485486,3.11472389,3329.9,3329.5,2.3821]
[1722296485692,3.11472389,3329.9,3329.5,5.38554]
[1722296485894,0.11472389,3329.9,3329.5,5.93010073]
[1722296486402,3.00336,3329.6,3329.0,3.00382]
[1722296486579,3.00327,3329.7,3329.0,3.00382]
[1722296486900,6.11823634,3329.6,3329.0,3.00382]
[1722296487460,3.11486634,3329.6,3329.0,0.838998]
[1722296487659,0.11486634,3329.6,3329.1,3.00378]
[1722296487861,6.00327,3329.7,3329.1,3.00378]
[1722296488108,0.11485447,3329.5,3329.1,3.00378]
[1722296488265,6.00327,3329.7,3329.1,3.00378]
[1722296488773,0.11482183,3329.6,3329.1,3.00378]
[1722296489404,0.11482183,3329.6,3329.1,3.93267089]
[1722296489602,3.11482183,3329.6,3329.1,3.00378]
[1722296489799,3.00345,3329.5,3328.9,5.38603]
[1722296490307,0.114807,3329.4,3328.9,2.3821]
[1722296491071,3.00364,3329.3,3328.9,2.3821]
[1722296491613,0.11486041,3329.2,3328.9,2.3821]
[1722296491813,3.11858041,3329.2,3328.6,3.00419]
[1722296492020,0.11486041,3329.1,3328.6,3.00419]
[1722296492511,0.11486041,3329.1,3328.7,3.00417]
[1722296492887,3.00356,3329.4,3328.7,3.00417]
[1722296493101,3.00356,3329.4,3328.8,3.00408]
[1722296493102,0.11478324,3329.0,3328.8,3.00408]
[1722296493401,0.11477137,3328.9,3328.8,3.00408]
[1722296493708,3.00339,3329.6,3328.8,3.604907]
[1722296493909,0.11477137,3328.9,3328.5,5.31468]
[1722296494114,3.0,3329.5,3328.5,5.31468]
[1722296494595,3.00363,3329.3,3328.7,3.00414]
[1722296495074,0.11477137,3329.2,3328.7,3.00414]
[1722296495414,0.11477137,3329.2,3328.9,3.00392]
[1722296495603,3.0,3329.5,3328.9,3.00392]
[1722296496112,0.11470015,3329.4,3329.1,3.00381]
[1722296496285,0.11470015,3329.4,3329.1,5.30731]
[1722296496616,6.00327,3329.7,3329.1,5.30731]
[1722296496770,0.11470312,3329.6,3329.1,5.30731]
[1722296497112,0.11470312,3329.6,3329.1,2.3035]
[1722296499113,3.00355,3329.4,3329.1,2.3035]
[1722296499298,3.00355,3329.4,3328.8,2.3181]
[1722296499505,3.00347,3329.5,3327.1,0.3005]
[1722296499506,3.00378,3329.2,3328.4,8.32692]
[1722296499677,3.00378,3329.2,3328.4,6.155202]
[1722296499879,0.11475059,3329.1,3328.4,6.155202]
[1722296500387,0.11475059,3329.1,3328.7,3.00415]
[1722296500888,0.11463487,3329.0,3328.7,3.00415]
[1722296501413,6.63122739,3329.5,3328.7,3.00415]
[1722296501580,0.11082029,3328.9,3328.7,3.00415]
[1722296501781,3.62770739,3329.5,3328.7,3.00415]
[1722296502111,3.00369,3329.3,3328.7,3.00415]
[1722296502670,0.10712601,3329.2,3328.7,3.00415]
[1722296503312,0.10712601,3329.2,3328.8,3.00402]
[1722296503519,3.62756818,3329.5,3328.9,2.369]
[1722296503520,3.00348,3329.5,3328.9,2.369]
[1722296503815,0.10002596,3329.1,3328.9,2.369]
[1722296504112,0.10002596,3329.0,3328.9,2.369]
[1722296504281,3.00355,3329.4,3328.9,2.369]
[1722296504482,0.10002596,3329.0,3328.9,2.369]
[1722296504703,3.00355,3329.4,3328.9,2.369]
[1722296504909,0.10004403,3329.0,3328.9,2.369]
[1722296505114,0.62408818,3329.5,3328.9,2.369]
[1722296505287,0.10004403,3329.0,3328.9,2.369]
[1722296505641,0.62408818,3329.4,3328.5,5.37332]
[1722296505794,0.10004403,3329.0,3328.5,5.37332]
[1722296505977,3.00381,3329.1,3328.5,5.37332]
[1722296506175,0.10007113,3328.9,3328.5,2.369]
[1722296506480,3.00381,3329.1,3328.1,3.00468]
[1722296506481,3.10415113,3328.8,3328.2,3.00462]
[1722296506803,3.10415113,3328.8,3328.1,2.4242]
[1722296506804,3.00417,3328.7,3328.1,5.42891]
[1722296507395,3.10433113,3328.6,3328.1,2.4242]
[1722296507729,0.10007113,3328.6,3328.1,2.4242]
[1722296509220,3.10435113,3328.6,3328.1,2.4242]
[1722296509424,3.00437,3328.5,3328.1,2.4242]
[1722296509626,3.00437,3328.5,3327.8,3.1515365]
[1722296509627,3.00437,3328.5,3327.9,3.00487]
[1722296509919,0.09993256,3328.4,3328.0,3.00479]
[1722296510084,3.00433,3328.6,3327.9,0.85807365]
[1722296510285,3.00433,3328.6,3327.8,5.5757465]
[1722296510286,0.09993256,3328.3,3327.8,5.5757465]
[1722296510485,3.62865443,3328.6,3327.8,5.5757465]
[1722296510686,0.09993256,3328.2,3327.9,3.00487]
[1722296510928,3.00433,3328.6,3327.9,3.00487]
[1722296511226,0.09993256,3328.1,3327.9,3.86294465]
[1722296511408,3.00436,3328.5,3327.9,3.86294465]
[1722296511719,3.00436,3328.5,3327.8,2.5708265]
[1722296511720,3.6288232,3328.5,3327.8,2.5708265]
[1722296511935,0.09993256,3328.4,3327.8,2.5708265]
[1722296512778,0.09993256,3328.4,3327.8,5.5757465]
[1722296512984,0.09993256,3328.4,3327.9,3.00489]
[1722296513283,3.00436,3328.5,3328.0,3.0048]
[1722296513284,0.09993256,3328.3,3328.0,3.0048]
[1722296513488,0.62465886,3328.6,3328.2,3.00462]
[1722296513689,0.9369883,3328.8,3328.2,3.00462]
[1722296513690,0.62465886,3328.8,3328.2,3.00462]
[1722296514298,3.62875886,3328.8,3328.2,3.00462]
[1722296514523,0.62465886,3328.7,3328.2,3.00462]
[1722296514700,3.62875886,3328.8,3328.2,3.00462]
[1722296515102,3.62886801,3328.8,3328.2,3.00462]
[1722296515313,0.62476801,3328.7,3328.2,3.00462]
[1722296515621,3.62886801,3328.8,3328.2,3.00462]
[1722296516329,3.62903801,3328.6,3327.9,3.00489]
[1722296516622,0.62476801,3328.4,3327.9,3.00489]
[1722296518410,0.62504776,3328.4,3327.9,3.00489]
[1722296519022,0.62504776,3328.3,3327.9,3.00489]
[1722296519232,0.62504776,3328.4,3327.9,3.00489]
[1722296519530,0.62504776,3328.3,3327.9,3.00489]
[1722296519750,0.62504776,3328.4,3327.9,3.00489]
[1722296520103,2.15454657,3328.3,3327.9,3.00489]
[1722296520345,0.62504776,3328.3,3327.9,6.00971]
[1722296520510,0.62504776,3328.5,3327.9,3.86287365]
[1722296520707,6.94181164,3328.7,3327.9,3.86287365]
[1722296520708,2.15448255,3328.4,3327.9,3.86287365]
[1722296520916,0.62504776,3328.4,3327.9,3.86287365]
[1722296521164,2.15452274,3328.3,3327.9,3.86287365]
[1722296521308,0.62504776,3328.3,3327.9,3.86287365]
[1722296521713,0.62504776,3328.3,3327.9,3.00482]
[1722296521911,0.09987836,3328.2,3327.8,2.5708265]
[1722296522115,0.62504776,3328.2,3327.8,2.5708265]
[1722296522366,3.94209164,3328.4,3327.8,2.5708265]
[1722296522367,0.62504776,3328.3,3327.8,2.5708265]
[1722296522515,0.09982713,3328.1,3327.8,2.5708265]
[1722296522865,0.62504776,3328.2,3327.8,2.5708265]
[1722296523168,3.62964776,3328.3,3327.8,2.5708265]
[1722296523319,0.0998181,3328.1,3327.8,2.5708265]
[1722296523516,0.62504776,3328.2,3327.8,2.5708265]
[1722296523771,0.0998181,3328.0,3327.8,2.5708265]
[1722296524091,0.62504776,3328.2,3327.8,2.5708265]
[1722296524263,0.0998181,3327.9,3327.8,2.5708265]
[1722296524918,0.62504776,3328.2,3327.8,2.5708265]
[1722296525120,1.52951951,3328.1,3327.8,2.5708265]
[1722296525329,1.62933761,3328.1,3327.8,2.5708265]
[1722296525531,0.0998181,3328.1,3327.8,2.5708265]
[1722296525728,3.00489,3327.9,3327.8,0.1466265]
[1722296525935,5.78458444,3327.9,3327.8,0.1466265]
[1722296526160,9.43900332,3327.9,3327.8,0.1466265]
[1722296526392,6.43411332,3327.9,3327.8,0.1466265]
[1722296526729,2.87922332,3327.9,3327.8,0.1466265]
[1722296526975,2.56686788,3327.9,3327.8,0.1466265]
[1722296527274,9.25877462,3327.9,3327.8,0.1466265]
[1722296527480,8.32108113,3327.9,3327.8,0.1466265]
[1722296527768,16.64307113,3327.9,3327.8,0.1466265]
[1722296527976,17.19307113,3327.9,3327.8,0.1466265]
[1722296528201,21.27806202,3327.9,3327.8,0.1466265]
[1722296528334,22.40756504,3327.9,3327.8,0.1466265]
[1722296529037,22.53771534,3327.9,3327.8,0.1256508]
[1722296529252,28.57645504,3327.9,3327.8,8e-07]
[1722296530241,30.7582996,3327.9,3327.8,8e-07]
[1722296530740,30.75839671,3327.9,3327.8,8e-07]
[1722296531394,3.00649,3326.2,3325.5,3.00699]
[1722296531629,5.41801,3326.8,3325.5,3.06712441]
[1722296531630,3.00628,3326.4,3325.5,3.06712441]
[1722296531735,3.10491516,3326.1,3325.5,0.06013441]
[1722296531939,3.00635,3326.3,3325.4,2.4835]
[1722296531940,3.00661,3326.0,3325.4,2.4835]
[1722296532190,3.00661,3326.0,3325.4,3.032572]
[1722296532347,1.86900435,3327.1,3325.4,3.032572]
[1722296532348,0.09839516,3325.9,3325.4,3.032572]
[1722296532555,3.00658,3326.1,3325.4,5.49064]
[1722296532779,0.09839516,3325.8,3325.7,3.00688]
[1722296533003,0.62300145,3326.7,3325.9,3.00667]
[1722296533004,3.0,3326.6,3325.9,3.00667]
[1722296533159,0.62300145,3327.0,3326.3,3.00633]
[1722296533497,0.09807836,3326.5,3326.2,3.0064]
[1722296533694,0.09807836,3326.5,3326.2,0.5403]
[1722296533985,0.62300145,3327.6,3326.3,2.70712282]
[1722296534140,3.62819145,3327.6,3326.7,3.00593]
[1722296534338,0.62300145,3327.6,3326.7,3.06604539]
[1722296534660,0.62300145,3327.6,3326.4,3.00625]
[1722296534661,6.9871027,3327.7,3327.1,3.00561]
[1722296534855,3.83435775,3327.7,3326.9,5.32618]
[1722296535182,0.82922775,3327.7,3327.0,3.0057]
[1722296535339,3.00508,3327.7,3327.0,3.0057]
[1722296535536,0.62300145,3328.0,3326.6,3.00604]
[1722296535744,3.00546,3327.3,3326.6,3.00604]
[1722296536079,3.00526,3327.5,3326.7,3.00598]